[Event "Schack-SM 2022: Mastarklassen"]
[Site "Fyrishov, Idrottsgatan 2, Uppsala, Sweden"]
[Date "2022.07.08"]
[Round "7.6"]
[White "Tiger-Norqvist, Axel"]
[Black "Eriksson, Jorgen"]
[Result "1/2-1/2"]
[TimeControl "90 minutes for 40 moves + 30 minutes for the rest of the game + 30 seconds per move from move one."]
[WhiteFideId "1716816"]
[BlackFideId "1701967"]
[WhiteElo "2239"]
[BlackElo "2200"]

1. e4 {[%clk 01:30:56]} {[%emt 00:00:03]} c5 {[%clk 01:30:44]} {[%emt
00:00:16]} 2. Nf3 {[%clk 01:30:54]} {[%emt 00:00:33]} Nc6 {[%clk 01:30:56]}
{[%emt 00:00:18]} 3. d4 {[%clk 01:30:26]} {[%emt 00:00:58]} cxd4 {[%clk
01:31:18]} {[%emt 00:00:08]} 4. Nxd4 {[%clk 01:30:48]} {[%emt 00:00:08]} e5
{[%clk 01:31:32]} {[%emt 00:00:15]} 5. Nf3 {[%clk 01:28:36]} {[%emt 00:02:43]}
Nf6 {[%clk 01:27:12]} {[%emt 00:04:50]} 6. Bc4 {[%clk 01:26:02]} {[%emt
00:03:05]} Bc5 {[%clk 01:22:03]} {[%emt 00:05:33]} 7. O-O {[%clk 01:24:47]}
{[%emt 00:01:50]} O-O {[%clk 01:19:13]} {[%emt 00:03:19]} 8. Nc3 {[%clk
01:24:39]} {[%emt 00:00:40]} h6 {[%clk 01:18:45]} {[%emt 00:00:56]} 9. a3
{[%clk 01:19:49]} {[%emt 00:05:21]} a6 {[%clk 01:11:47]} {[%emt 00:07:28]} 10.
b4 {[%clk 01:16:17]} {[%emt 00:04:03]} Ba7 {[%clk 01:10:02]} {[%emt 00:02:13]}
11. Qd3 {[%clk 01:15:16]} {[%emt 00:01:31]} d6 {[%clk 01:03:59]} {[%emt
00:06:33]} 12. Be3 {[%clk 01:08:34]} {[%emt 00:07:13]} b5 {[%clk 00:42:12]}
{[%emt 00:22:17]} 13. Ba2 {[%clk 00:54:52]} {[%emt 00:14:12]} Bg4 {[%clk
00:31:20]} {[%emt 00:11:22]} 14. Bxa7 {[%clk 00:52:26]} {[%emt 00:02:57]} Rxa7
{[%clk 00:31:29]} {[%emt 00:00:20]} 15. Nd5 {[%clk 00:44:09]} {[%emt 00:08:48]}
Bxf3 {[%clk 00:27:19]} {[%emt 00:04:39]} 16. Qxf3 {[%clk 00:43:08]} {[%emt
00:01:31]} Nxd5 {[%clk 00:25:02]} {[%emt 00:02:47]} 17. Bxd5 {[%clk 00:43:26]}
{[%emt 00:00:12]} Nd4 {[%clk 00:25:05]} {[%emt 00:00:27]} 18. Qd3 {[%clk
00:43:41]} {[%emt 00:00:15]} Rc7 {[%clk 00:21:21]} {[%emt 00:04:14]} 19. c3
{[%clk 00:40:57]} {[%emt 00:03:14]} Rxc3 {[%clk 00:20:57]} {[%emt 00:00:53]} 20.
Qd1 {[%clk 00:41:25]} {[%emt 00:00:03]} Qb6 {[%clk 00:18:08]} {[%emt 00:03:19]}
21. Kh1 {[%clk 00:41:09]} {[%emt 00:00:46]} Ne6 {[%clk 00:16:54]} {[%emt
00:01:44]} 22. g3 {[%clk 00:34:23]} {[%emt 00:07:16]} Nc7 {[%clk 00:14:00]}
{[%emt 00:03:24]} 23. f4 {[%clk 00:32:10]} {[%emt 00:02:44]} Nxd5 {[%clk
00:14:12]} {[%emt 00:00:17]} 24. Qxd5 {[%clk 00:32:35]} {[%emt 00:00:04]} exf4
{[%clk 00:13:55]} {[%emt 00:00:48]} 25. Rxf4 {[%clk 00:32:30]} {[%emt
00:00:35]} Qc6 {[%clk 00:13:40]} {[%emt 00:00:45]} 26. Qxc6 {[%clk 00:27:55]}
{[%emt 00:05:06]} Rxc6 {[%clk 00:14:03]} {[%emt 00:00:06]} 27. a4 {[%clk
00:28:23]} {[%emt 00:00:03]} Rc4 {[%clk 00:08:55]} {[%emt 00:05:37]} 28. axb5
{[%clk 00:28:22]} {[%emt 00:00:31]} axb5 {[%clk 00:09:20]} {[%emt 00:00:05]} 29.
Rd1 {[%clk 00:28:44]} {[%emt 00:00:09]} Rd8 {[%clk 00:07:24]} {[%emt 00:02:25]}
30. Rd5 {[%clk 00:29:07]} {[%emt 00:00:08]} Rxb4 {[%clk 00:06:03]} {[%emt
00:01:51]} 31. e5 {[%clk 00:29:26]} {[%emt 00:00:11]} Rxf4 {[%clk 00:05:55]}
{[%emt 00:00:37]} 32. gxf4 {[%clk 00:29:50]} {[%emt 00:00:06]} b4 {[%clk
00:06:00]} {[%emt 00:00:25]} 33. exd6 {[%clk 00:30:16]} {[%emt 00:00:05]} b3
{[%clk 00:05:50]} {[%emt 00:00:40]} 34. Kg2 {[%clk 00:28:27]} {[%emt 00:02:18]}
b2 {[%clk 00:05:49]} {[%emt 00:00:30]} 35. Rb5 {[%clk 00:28:52]} {[%emt
00:00:05]} Rxd6 {[%clk 00:06:11]} {[%emt 00:00:08]} 36. Rxb2 {[%clk 00:29:18]}
{[%emt 00:00:04]} Rd3 {[%clk 00:06:15]} {[%emt 00:00:25]} 37. Rb8+ {[%clk
00:25:55]} {[%emt 00:03:54]} Kh7 {[%clk 00:06:39]} {[%emt 00:00:06]} 38. Rb6
{[%clk 00:26:13]} {[%emt 00:00:12]} Re3 {[%clk 00:04:18]} {[%emt 00:02:51]} 39.
Kf2 {[%clk 00:25:26]} {[%emt 00:01:17]} Ra3 {[%clk 00:03:57]} {[%emt 00:00:50]}
40. Kg2 {[%clk 00:20:18]} {[%emt 00:05:39]} Re3 {[%clk 00:03:27]} {[%emt
00:01:00]} 41. Kf2 {[%clk 00:19:58]} {[%emt 00:00:50]} Re6 {[%clk 00:03:46]}
{[%emt 00:00:11]} 42. Rb7 {[%clk 00:20:18]} {[%emt 00:00:10]} Rf6 {[%clk
00:03:46]} {[%emt 00:00:30]} 43. Kg3 {[%clk 00:20:29]} {[%emt 00:00:19]} Kg6
{[%clk 00:03:40]} {[%emt 00:00:36]} 44. Ra7 {[%clk 00:07:00]} {[%emt 00:14:00]}
Rb6 {[%clk 00:03:44]} {[%emt 00:00:24]} 45. Ra5 {[%clk 00:06:03]} {[%emt
00:01:28]} Rb3+ {[%clk 00:03:24]} {[%emt 00:00:49]} 46. Kg4 {[%clk 00:02:06]}
{[%emt 00:04:28]} Rb4 {[%clk 00:26:44]} {[%emt 00:07:09]} 47. h4 {[%clk
00:22:38]} {[%emt 00:09:59]} h5+ {[%clk 00:24:23]} {[%emt 00:02:51]} 48. Kg3
{[%clk 00:23:03]} {[%emt 00:00:05]} Rb3+ {[%clk 00:24:26]} {[%emt 00:00:26]} 49.
Kg2 {[%clk 00:23:27]} {[%emt 00:00:07]} Re3 {[%clk 00:20:09]} {[%emt 00:04:47]}
50. Rg5+ {[%clk 00:21:52]} {[%emt 00:02:05]} Kh6 {[%clk 00:20:34]} {[%emt
00:00:06]} 51. Rf5 {[%clk 00:22:18]} {[%emt 00:00:04]} f6 {[%clk 00:18:41]}
{[%emt 00:02:22]} 52. Ra5 {[%clk 00:22:10]} {[%emt 00:00:38]} Kg6 {[%clk
00:17:55]} {[%emt 00:01:15]} 53. Rb5 {[%clk 00:21:47]} {[%emt 00:00:54]} Kh6
{[%clk 00:14:55]} {[%emt 00:03:30]} 54. Ra5 {[%clk 00:21:54]} {[%emt 00:00:23]}
Re7 {[%clk 00:11:53]} {[%emt 00:03:30]} 55. Kf3 {[%clk 00:18:19]} {[%emt
00:04:07]} g6 {[%clk 00:11:52]} {[%emt 00:00:31]} 56. Ra6 {[%clk 00:17:18]}
{[%emt 00:01:32]} Kg7 {[%clk 00:12:05]} {[%emt 00:00:16]} 57. Rb6 {[%clk
00:16:57]} {[%emt 00:00:51]} Kf7 {[%clk 00:12:07]} {[%emt 00:00:28]} 58. Ra6
{[%clk 00:17:08]} {[%emt 00:00:19]} Rd7 {[%clk 00:10:38]} {[%emt 00:01:59]} 59.
Rb6 {[%clk 00:08:06]} {[%emt 00:09:33]} Rd3+ {[%clk 00:10:22]} {[%emt
00:00:44]} 60. Ke4 {[%clk 00:04:11]} {[%emt 00:04:26]} Rh3 {[%clk 00:08:58]}
{[%emt 00:01:54]} 61. Rb7+ {[%clk 00:04:38]} {[%emt 00:00:04]} Kg8 {[%clk
00:08:52]} {[%emt 00:00:36]} 62. Rb8+ {[%clk 00:04:59]} {[%emt 00:00:10]} Kg7
{[%clk 00:09:12]} {[%emt 00:00:09]} 63. Rb7+ {[%clk 00:05:21]} {[%emt
00:00:08]} Kh6 {[%clk 00:09:31]} {[%emt 00:00:10]} 64. Rb6 {[%clk 00:04:57]}
{[%emt 00:00:55]} Rxh4 {[%clk 00:04:39]} {[%emt 00:05:22]} 65. Rxf6 {[%clk
00:05:21]} {[%emt 00:00:07]} Kg7 {[%clk 00:04:29]} {[%emt 00:00:40]} 66. Ra6
{[%clk 00:04:39]} {[%emt 00:01:11]} Rh1 {[%clk 00:03:32]} {[%emt 00:01:27]} 67.
Ra7+ {[%clk 00:04:18]} {[%emt 00:00:51]} Kh6 {[%clk 00:03:56]} {[%emt
00:00:05]} 68. Kf3 {[%clk 00:04:36]} {[%emt 00:00:12]} Rh3+ {[%clk 00:04:01]}
{[%emt 00:00:25]} 69. Kg2 {[%clk 00:04:48]} {[%emt 00:00:18]} Rd3 {[%clk
00:04:09]} {[%emt 00:00:22]} 70. Ra5 {[%clk 00:04:54]} {[%emt 00:00:24]} Kg7
{[%clk 00:03:51]} {[%emt 00:00:48]} 71. f5 {[%clk 00:04:07]} {[%emt 00:01:18]}
g5 {[%clk 00:03:32]} {[%emt 00:00:48]} 72. Ra6 {[%clk 00:04:34]} {[%emt
00:00:03]} g4 {[%clk 00:02:54]} {[%emt 00:01:08]} 73. Rg6+ {[%clk 00:04:55]}
{[%emt 00:00:08]} Kf7 {[%clk 00:01:56]} {[%emt 00:01:28]} 74. Rg5 {[%clk
00:04:52]} {[%emt 00:00:34]} Rh3 {[%clk 00:02:16]} {[%emt 00:00:09]} 75. Rg6
{[%clk 00:05:18]} {[%emt 00:00:04]} Rf3 {[%clk 00:01:55]} {[%emt 00:00:51]} 76.
Rg5 {[%clk 00:05:43]} {[%emt 00:00:05]} Rh3 {[%clk 00:01:57]} {[%emt 00:00:28]}
77. Rg6 {[%clk 00:06:00]} {[%emt 00:00:13]} Ke7 {[%clk 00:02:05]} {[%emt
00:00:21]} 78. Re6+ {[%clk 00:05:55]} {[%emt 00:00:36]} Kf8 {[%clk 00:01:53]}
{[%emt 00:00:42]} 79. Rh6 {[%clk 00:04:30]} {[%emt 00:01:54]} Kg7 {[%clk
00:02:13]} {[%emt 00:00:10]} 80. Rg6+ {[%clk 00:04:29]} {[%emt 00:00:31]} Kf7
{[%clk 00:02:08]} {[%emt 00:00:35]} 81. Rh6 {[%clk 00:04:29]} {[%emt 00:00:30]}
h4 {[%clk 00:01:43]} {[%emt 00:00:54]} 82. Rg6 {[%clk 00:03:51]} {[%emt
00:01:08]} Rg3+ {[%clk 00:02:07]} {[%emt 00:00:07]} 83. Kh2 {[%clk 00:04:11]}
{[%emt 00:00:10]} Ke7 {[%clk 00:01:41]} {[%emt 00:00:55]} 84. Rh6 {[%clk
00:03:58]} {[%emt 00:00:44]} Rh3+ {[%clk 00:02:02]} {[%emt 00:00:09]} 85. Kg2
{[%clk 00:04:24]} {[%emt 00:00:04]} Kf8 {[%clk 00:02:15]} {[%emt 00:00:16]} 86.
Rg6 {[%clk 00:04:48]} {[%emt 00:00:07]} Rg3+ {[%clk 00:02:40]} {[%emt
00:00:05]} 87. Kh2 {[%clk 00:05:13]} {[%emt 00:00:05]} Kf7 {[%clk 00:03:03]}
{[%emt 00:00:07]} 88. Rh6 {[%clk 00:04:42]} {[%emt 00:01:02]} Rh3+ {[%clk
00:02:13]} {[%emt 00:01:19]} 89. Kg2 {[%clk 00:05:07]} {[%emt 00:00:05]} Rg3+
{[%clk 00:01:21]} {[%emt 00:01:22]} 1/2-1/2

[Event "Schack-SM 2022: Mastarklassen"]
[Site "Fyrishov, Idrottsgatan 2, Uppsala, Sweden"]
[Date "2022.07.08"]
[Round "7.7"]
[White "Styf, Josef"]
[Black "Mardell, Jimmy"]
[Result "0-1"]
[TimeControl "90 minutes for 40 moves + 30 minutes for the rest of the game + 30 seconds per move from move one."]
[WhiteFideId "1708279"]
[BlackFideId "1705610"]
[WhiteElo "2048"]
[BlackElo "2161"]

1. e4 {[%clk 01:30:02]} {[%emt 00:00:57]} c5 {[%clk 01:30:53]} {[%emt
00:00:08]} 2. Nf3 {[%clk 01:30:01]} {[%emt 00:00:31]} e6 {[%clk 01:31:16]}
{[%emt 00:00:08]} 3. c3 {[%clk 01:29:07]} {[%emt 00:01:24]} Nc6 {[%clk
01:31:24]} {[%emt 00:00:22]} 4. d4 {[%clk 01:27:50]} {[%emt 00:01:46]} d5
{[%clk 01:30:53]} {[%emt 00:01:01]} 5. exd5 {[%clk 01:25:46]} {[%emt 00:02:34]}
exd5 {[%clk 01:27:00]} {[%emt 00:04:23]} 6. dxc5 {[%clk 01:21:57]} {[%emt
00:04:19]} Bxc5 {[%clk 01:25:36]} {[%emt 00:01:54]} 7. Be2 {[%clk 01:18:55]}
{[%emt 00:03:31]} Nf6 {[%clk 01:24:38]} {[%emt 00:01:28]} 8. b4 {[%clk
01:16:17]} {[%emt 00:03:08]} Bd6 {[%clk 01:21:12]} {[%emt 00:03:56]} 9. O-O
{[%clk 01:15:28]} {[%emt 00:01:19]} Ne4 {[%clk 01:13:38]} {[%emt 00:08:04]} 10.
Be3 {[%clk 01:11:51]} {[%emt 00:04:06]} O-O {[%clk 01:11:37]} {[%emt 00:02:32]}
11. Bd4 {[%clk 00:59:20]} {[%emt 00:13:01]} Re8 {[%clk 01:08:20]} {[%emt
00:03:47]} 12. b5 {[%clk 00:55:43]} {[%emt 00:04:07]} Nxd4 {[%clk 01:06:10]}
{[%emt 00:02:40]} 13. cxd4 {[%clk 00:46:28]} {[%emt 00:09:44]} Bg4 {[%clk
00:57:31]} {[%emt 00:09:09]} 14. h3 {[%clk 00:46:01]} {[%emt 00:00:57]} Bh5
{[%clk 00:57:12]} {[%emt 00:00:49]} 15. a3 {[%clk 00:44:52]} {[%emt 00:01:39]}
Qf6 {[%clk 00:51:13]} {[%emt 00:06:29]} 16. g4 {[%clk 00:33:33]} {[%emt
00:11:49]} Bg6 {[%clk 00:49:07]} {[%emt 00:02:36]} 17. Kg2 {[%clk 00:26:13]}
{[%emt 00:07:49]} Rac8 {[%clk 00:45:06]} {[%emt 00:04:32]} 18. Ra2 {[%clk
00:25:16]} {[%emt 00:01:26]} Qf4 {[%clk 00:39:11]} {[%emt 00:06:25]} 19. Qb3
{[%clk 00:21:51]} {[%emt 00:03:55]} Nxf2 {[%clk 00:19:48]} {[%emt 00:19:53]} 20.
Ne5 {[%clk 00:17:23]} {[%emt 00:04:58]} Rxe5 {[%clk 00:16:14]} {[%emt
00:04:04]} 21. dxe5 {[%clk 00:10:38]} {[%emt 00:07:15]} Bxe5 {[%clk 00:16:13]}
{[%emt 00:00:31]} 22. Qxd5 {[%clk 00:03:38]} {[%emt 00:07:30]} Qh2+ {[%clk
00:16:18]} {[%emt 00:00:26]} 23. Kf3 {[%clk 00:04:00]} {[%emt 00:00:08]} Qxh3+
{[%clk 00:16:34]} {[%emt 00:00:14]} 0-1

[Event "Schack-SM 2022: Mastarklassen"]
[Site "Fyrishov, Idrottsgatan 2, Uppsala, Sweden"]
[Date "2022.07.08"]
[Round "7.8"]
[White "Joensson, Jacob"]
[Black "Carlstrom, Niklas"]
[Result "0-1"]
[TimeControl "90 minutes for 40 moves + 30 minutes for the rest of the game + 30 seconds per move from move one."]
[WhiteFideId "1726315"]
[BlackFideId "1704648"]
[WhiteElo "1947"]
[BlackElo "2125"]

1. d4 {[%clk 01:30:58]} {[%emt 00:00:01]} Nf6 {[%clk 01:30:40]} {[%emt
00:00:20]} 2. c4 {[%clk 01:31:22]} {[%emt 00:00:07]} g6 {[%clk 01:30:58]}
{[%emt 00:00:11]} 3. Nc3 {[%clk 01:31:45]} {[%emt 00:00:08]} Bg7 {[%clk
01:31:17]} {[%emt 00:00:10]} 4. e4 {[%clk 01:32:09]} {[%emt 00:00:07]} d6
{[%clk 01:31:32]} {[%emt 00:00:14]} 5. Be2 {[%clk 01:32:27]} {[%emt 00:00:13]}
O-O {[%clk 01:31:46]} {[%emt 00:00:15]} 6. Nf3 {[%clk 01:32:51]} {[%emt
00:00:07]} Nbd7 {[%clk 01:31:19]} {[%emt 00:00:57]} 7. O-O {[%clk 01:27:44]}
{[%emt 00:05:37]} e5 {[%clk 01:31:40]} {[%emt 00:00:09]} 8. d5 {[%clk
01:26:05]} {[%emt 00:02:10]} Nc5 {[%clk 01:31:19]} {[%emt 00:00:50]} 9. Qc2
{[%clk 01:26:24]} {[%emt 00:00:12]} a5 {[%clk 01:27:41]} {[%emt 00:04:08]} 10.
Bg5 {[%clk 01:23:19]} {[%emt 00:03:35]} h6 {[%clk 01:26:25]} {[%emt 00:01:45]}
11. Bh4 {[%clk 01:23:37]} {[%emt 00:00:12]} g5 {[%clk 01:19:03]} {[%emt
00:07:51]} 12. Bg3 {[%clk 01:24:00]} {[%emt 00:00:07]} Nh5 {[%clk 01:19:07]}
{[%emt 00:00:25]} 13. Nd2 {[%clk 01:14:18]} {[%emt 00:10:13]} Nf4 {[%clk
01:17:12]} {[%emt 00:02:24]} 14. b3 {[%clk 01:11:37]} {[%emt 00:03:11]} f5
{[%clk 01:06:55]} {[%emt 00:10:46]} 15. f3 {[%clk 01:10:44]} {[%emt 00:01:25]}
Nxe2+ {[%clk 00:50:55]} {[%emt 00:16:29]} 16. Nxe2 {[%clk 01:11:00]} {[%emt
00:00:14]} f4 {[%clk 00:51:17]} {[%emt 00:00:08]} 17. Bf2 {[%clk 01:11:20]}
{[%emt 00:00:09]} b6 {[%clk 00:51:04]} {[%emt 00:00:43]} 18. a3 {[%clk
01:08:41]} {[%emt 00:03:10]} g4 {[%clk 00:40:58]} {[%emt 00:10:34]} 19. b4
{[%clk 01:06:44]} {[%emt 00:02:28]} gxf3 {[%clk 00:41:00]} {[%emt 00:00:28]} 20.
Nxf3 {[%clk 01:07:01]} {[%emt 00:00:13]} Nxe4 {[%clk 00:38:48]} {[%emt
00:02:41]} 21. Bh4 {[%clk 01:00:26]} {[%emt 00:07:06]} Qe8 {[%clk 00:37:20]}
{[%emt 00:01:58]} 22. c5 {[%clk 01:00:09]} {[%emt 00:00:48]} Bf5 {[%clk
00:36:37]} {[%emt 00:01:12]} 23. cxb6 {[%clk 00:51:55]} {[%emt 00:08:46]} cxb6
{[%clk 00:36:50]} {[%emt 00:00:15]} 24. Qc7 {[%clk 00:51:59]} {[%emt 00:00:27]}
axb4 {[%clk 00:33:38]} {[%emt 00:03:41]} 25. axb4 {[%clk 00:50:57]} {[%emt
00:01:31]} Rc8 {[%clk 00:31:08]} {[%emt 00:03:00]} 26. Qxb6 {[%clk 00:38:52]}
{[%emt 00:12:36]} Rc2 {[%clk 00:30:36]} {[%emt 00:01:01]} 27. Rfe1 {[%clk
00:36:40]} {[%emt 00:02:43]} Qg6 {[%clk 00:26:18]} {[%emt 00:04:47]} 28. Be7
{[%clk 00:35:05]} {[%emt 00:02:06]} Rfc8 {[%clk 00:19:33]} {[%emt 00:07:14]} 29.
Nh4 {[%clk 00:29:08]} {[%emt 00:06:28]} Qh5 {[%clk 00:19:31]} {[%emt 00:00:31]}
30. Nxf5 {[%clk 00:25:15]} {[%emt 00:04:24]} Qxf5 {[%clk 00:19:53]} {[%emt
00:00:07]} 31. Ra3 {[%clk 00:19:49]} {[%emt 00:05:58]} Rxe2 {[%clk 00:20:01]}
{[%emt 00:00:21]} 0-1

[Event "Schack-SM 2022: Mastarklassen"]
[Site "Fyrishov, Idrottsgatan 2, Uppsala, Sweden"]
[Date "2022.07.08"]
[Round "7.1"]
[White "Lind, Jan-Olov"]
[Black "Landgren, Andreas"]
[Result "1/2-1/2"]
[TimeControl "90 minutes for 40 moves + 30 minutes for the rest of the game + 30 seconds per move from move one."]
[BlackTitle "FM"]
[WhiteFideId "1701193"]
[BlackFideId "1704311"]
[WhiteElo "2173"]
[BlackElo "2224"]

1. e4 {[%clk 01:30:57]} {[%emt 00:00:01]} e5 {[%clk 01:30:53]} {[%emt
00:00:08]} 2. Nf3 {[%clk 01:29:43]} {[%emt 00:01:43]} Nc6 {[%clk 01:31:17]}
{[%emt 00:00:07]} 3. Be2 {[%clk 01:28:25]} {[%emt 00:01:48]} Nf6 {[%clk
01:31:38]} {[%emt 00:00:09]} 4. d3 {[%clk 01:28:49]} {[%emt 00:00:05]} d5
{[%clk 01:31:57]} {[%emt 00:00:12]} 5. Nbd2 {[%clk 01:29:13]} {[%emt 00:00:06]}
Bd6 {[%clk 01:30:17]} {[%emt 00:02:10]} 6. c3 {[%clk 01:25:04]} {[%emt
00:04:38]} O-O {[%clk 01:30:25]} {[%emt 00:00:23]} 7. O-O {[%clk 01:25:09]}
{[%emt 00:00:24]} h6 {[%clk 01:28:25]} {[%emt 00:02:30]} 8. b4 {[%clk
01:07:53]} {[%emt 00:17:47]} Ne7 {[%clk 01:17:31]} {[%emt 00:11:24]} 9. a3
{[%clk 01:01:51]} {[%emt 00:06:32]} Ng6 {[%clk 01:07:34]} {[%emt 00:10:26]} 10.
Re1 {[%clk 00:59:55]} {[%emt 00:02:26]} c6 {[%clk 01:05:21]} {[%emt 00:02:45]}
11. Bf1 {[%clk 00:55:11]} {[%emt 00:05:13]} Re8 {[%clk 01:00:31]} {[%emt
00:05:21]} 12. g3 {[%clk 00:49:01]} {[%emt 00:06:39]} b6 {[%clk 00:53:29]}
{[%emt 00:07:33]} 13. Bb2 {[%clk 00:44:26]} {[%emt 00:05:05]} Bb7 {[%clk
00:52:47]} {[%emt 00:01:12]} 14. Bg2 {[%clk 00:41:20]} {[%emt 00:03:35]} Qd7
{[%clk 00:50:36]} {[%emt 00:02:42]} 15. Nf1 {[%clk 00:39:03]} {[%emt 00:02:46]}
Rad8 {[%clk 00:40:45]} {[%emt 00:10:21]} 16. Qc2 {[%clk 00:36:09]} {[%emt
00:03:25]} c5 {[%clk 00:33:51]} {[%emt 00:07:25]} 17. N3d2 {[%clk 00:33:39]}
{[%emt 00:02:58]} dxe4 {[%clk 00:30:13]} {[%emt 00:04:09]} 18. dxe4 {[%clk
00:33:52]} {[%emt 00:00:17]} Bc6 {[%clk 00:23:03]} {[%emt 00:07:41]} 19. Nc4
{[%clk 00:30:02]} {[%emt 00:04:20]} Ba4 {[%clk 00:22:30]} {[%emt 00:01:04]} 20.
Qb1 {[%clk 00:27:50]} {[%emt 00:02:41]} Bc7 {[%clk 00:19:08]} {[%emt 00:03:53]}
21. Nce3 {[%clk 00:25:55]} {[%emt 00:02:24]} Ne7 {[%clk 00:17:22]} {[%emt
00:02:16]} 22. h4 {[%clk 00:22:20]} {[%emt 00:04:05]} Qe6 {[%clk 00:13:18]}
{[%emt 00:04:35]} 23. c4 {[%clk 00:20:57]} {[%emt 00:01:53]} Nc6 {[%clk
00:12:20]} {[%emt 00:01:27]} 24. Nd5 {[%clk 00:19:32]} {[%emt 00:01:56]} Bd6
{[%clk 00:10:14]} {[%emt 00:02:37]} 25. Nfe3 {[%clk 00:16:03]} {[%emt
00:03:58]} Nd4 {[%clk 00:09:58]} {[%emt 00:00:47]} 26. Bxd4 {[%clk 00:09:02]}
{[%emt 00:07:31]} cxd4 {[%clk 00:09:07]} {[%emt 00:01:21]} 27. Nxf6+ {[%clk
00:08:50]} {[%emt 00:00:41]} Qxf6 {[%clk 00:09:26]} {[%emt 00:00:12]} 28. Nd5
{[%clk 00:09:13]} {[%emt 00:00:07]} Qg6 {[%clk 00:07:43]} {[%emt 00:02:13]} 29.
Qd3 {[%clk 00:08:16]} {[%emt 00:01:26]} Bc6 {[%clk 00:07:57]} {[%emt 00:00:17]}
30. Rac1 {[%clk 00:08:00]} {[%emt 00:00:45]} b5 {[%clk 00:07:01]} {[%emt
00:01:26]} 31. h5 {[%clk 00:04:19]} {[%emt 00:04:11]} Qxh5 {[%clk 00:07:01]}
{[%emt 00:00:31]} 32. cxb5 {[%clk 00:04:07]} {[%emt 00:00:41]} Bxd5 {[%clk
00:07:03]} {[%emt 00:00:28]} 33. exd5 {[%clk 00:04:30]} {[%emt 00:00:07]} f5
{[%clk 00:06:32]} {[%emt 00:01:01]} 34. Rc6 {[%clk 00:04:24]} {[%emt 00:00:35]}
Bb8 {[%clk 00:04:14]} {[%emt 00:02:49]} 35. Rec1 {[%clk 00:04:22]} {[%emt
00:00:32]} Qf7 {[%clk 00:03:58]} {[%emt 00:00:47]} 36. Qc4 {[%clk 00:03:44]}
{[%emt 00:01:07]} e4 {[%clk 00:02:56]} {[%emt 00:01:32]} 37. Qxd4 {[%clk
00:03:41]} {[%emt 00:00:33]} Qxd5 {[%clk 00:02:56]} {[%emt 00:00:31]} 38. Qxd5+
{[%clk 00:03:33]} {[%emt 00:00:37]} Rxd5 {[%clk 00:03:25]} {[%emt 00:00:01]} 39.
R6c5 {[%clk 00:02:36]} {[%emt 00:01:27]} Rde5 {[%clk 00:03:08]} {[%emt
00:00:48]} 40. Rxe5 {[%clk 00:01:35]} {[%emt 00:01:30]} Bxe5 {[%clk 00:03:30]}
{[%emt 00:00:08]} 41. Rd1 {[%clk 00:28:22]} {[%emt 00:03:43]} Kf7 {[%clk
00:29:30]} {[%emt 00:04:30]} 42. Rd5 {[%clk 00:19:59]} {[%emt 00:08:53]} Ke6
{[%clk 00:29:27]} {[%emt 00:00:33]} 43. Rc5 {[%clk 00:20:06]} {[%emt 00:00:23]}
Rd8 {[%clk 00:24:26]} {[%emt 00:05:32]} 44. Rc6+ {[%clk 00:19:07]} {[%emt
00:01:29]} Rd6 {[%clk 00:23:47]} {[%emt 00:01:09]} 45. g4 {[%clk 00:18:57]}
{[%emt 00:00:39]} g6 {[%clk 00:23:34]} {[%emt 00:00:43]} 46. gxf5+ {[%clk
00:19:18]} {[%emt 00:00:09]} gxf5 {[%clk 00:23:34]} {[%emt 00:00:30]} 47. Bh3
{[%clk 00:19:33]} {[%emt 00:00:14]} Rxc6 {[%clk 00:23:14]} {[%emt 00:00:51]}
1/2-1/2